bitfinex/quotes_BTCUSD_20240605
["timestamp","ask_amount","ask_price","bid_price","bid_amount"]
[1717600818850,0.01066226,71257.0,71256.0,0.00015]
[1717600823595,0.01,71242.0,71241.0,0.0831]
[1717600823836,0.00066226,71244.0,71241.0,0.0831]
[1717600823837,0.01,71243.0,71242.0,0.140366]
[1717600824055,0.01,71243.0,71242.0,0.16385375]
[1717600824677,0.00066226,71244.0,71243.0,0.140364]
[1717600824991,0.01066226,71244.0,71243.0,0.16385175]
[1717600825224,0.01066226,71244.0,71243.0,0.02348775]
[1717600825442,0.01066226,71244.0,71236.0,0.06480588]
[1717600825668,0.01066226,71239.0,71237.0,0.02348607]
[1717600825893,0.01066226,71238.0,71237.0,0.02348607]
[1717600826117,0.01066226,71237.0,71236.0,0.02348607]
[1717600826351,0.01,71232.0,71231.0,0.04331813]
[1717600826591,0.01,71235.0,71231.0,0.18773706]
[1717600826812,0.01,71232.0,71231.0,0.02549129]
[1717600827057,0.01066226,71232.0,71231.0,0.02549122]
[1717600827292,0.15104826,71232.0,71231.0,0.06693185]
[1717600827520,0.15104826,71232.0,71231.0,0.02549122]
[1717600827521,0.45182026,71232.0,71231.0,0.02549122]
[1717600827754,0.15104826,71232.0,71231.0,0.02549122]
[1717600827975,0.01066226,71232.0,71231.0,0.02549122]
[1717600829841,0.15104826,71232.0,71231.0,0.02549122]
[1717600830067,0.24764826,71232.0,71231.0,0.02549122]
[1717600830291,0.39074826,71232.0,71231.0,0.02549122]
[1717600830509,0.15105826,71227.0,71226.0,0.01410242]
[1717600830750,0.15105826,71227.0,71226.0,0.03759667]
[1717600830965,0.15105826,71227.0,71226.0,0.01410242]
[1717600831146,0.15105826,71227.0,71226.0,0.02349425]
[1717600831385,0.00066226,71225.0,71224.0,0.02349425]
[1717600831602,0.01,71224.0,71223.0,0.0623268]
[1717600831831,0.01066226,71224.0,71223.0,0.0842531]
[1717600832221,0.01066226,71224.0,71223.0,0.0220763]
[1717600832429,0.15106426,71224.0,71223.0,0.0220763]
[1717600834079,0.29548319,71224.0,71223.0,0.0220763]
[1717600834278,2.07773951,71224.0,71223.0,0.0220763]
[1717600834496,1.94702231,71224.0,71223.0,0.0220763]
[1717600834733,1.64613413,71224.0,71223.0,0.0220763]
[1717600834953,1.55621831,71224.0,71223.0,0.0220763]
[1717600835168,1.16621831,71224.0,71223.0,0.0220763]
[1717600835399,1.56621831,71224.0,71223.0,0.0220763]
[1717600835628,1.94702231,71224.0,71223.0,0.0220763]
[1717600835857,2.14702231,71224.0,71223.0,0.0220763]
[1717600836079,2.14702231,71224.0,71223.0,0.0088663]
[1717600836289,0.17091038,71216.0,71215.0,0.00946]
[1717600836505,0.61916431,71216.0,71215.0,0.03138778]
[1717600837305,0.32832931,71216.0,71215.0,0.03138778]
[1717600838203,0.31832931,71216.0,71215.0,0.03138778]
[1717600838426,0.29532931,71216.0,71215.0,0.03138778]
[1717600839664,0.58616431,71216.0,71215.0,0.03138778]
[1717600840170,0.59616431,71216.0,71215.0,0.03138778]
[1717600840770,0.15091038,71216.0,71215.0,0.03138778]
[1717600840944,0.44174538,71216.0,71215.0,0.03138778]
[1717600841373,0.45174538,71216.0,71215.0,0.03138778]
[1717600841571,0.65174538,71216.0,71215.0,0.03138778]
[1717600841936,1.07699931,71216.0,71215.0,0.03138778]
[1717600842140,2.19383431,71216.0,71215.0,0.03138778]
[1717600842345,2.52143431,71216.0,71215.0,0.03138778]
[1717600843553,2.52143431,71216.0,71215.0,0.02865259]
[1717600844414,2.52143431,71216.0,71215.0,0.00672481]
[1717600844850,2.20143431,71216.0,71215.0,0.00342281]
[1717600845051,0.69944006,71216.0,71215.0,0.02535134]
[1717600845270,0.15091038,71216.0,71215.0,0.02535134]
[1717600845454,0.43174538,71216.0,71215.0,0.02535134]
[1717600845943,0.44174538,71216.0,71215.0,0.02535134]
[1717600846331,0.72258038,71216.0,71215.0,0.02535134]
[1717600846688,0.73258038,71216.0,71215.0,0.02535134]
[1717600847091,2.11173431,71216.0,71215.0,0.02535134]
[1717600847491,1.03262038,71212.0,71211.0,0.002]
[1717600847692,1.41303931,71212.0,71211.0,0.002]
[1717600848102,1.69389031,71212.0,71211.0,0.002]
[1717600848306,1.10303931,71212.0,71211.0,0.02392871]
[1717600848504,0.82218831,71212.0,71211.0,0.02392871]
[1717600848801,0.80918831,71212.0,71211.0,1.02392871]
[1717600849002,1.09003931,71212.0,71211.0,1.02392871]
[1717600849602,0.79918831,71212.0,71211.0,1.02392871]
[1717600850031,1.08003931,71212.0,71211.0,1.02392871]
[1717600850236,1.09003931,71212.0,71211.0,1.02392871]
[1717600850436,1.08003931,71212.0,71211.0,1.02392871]
[1717600850642,0.79918831,71212.0,71211.0,1.02392871]
[1717600850908,1.09003931,71212.0,71211.0,1.02392871]
[1717600851068,1.29003931,71212.0,71211.0,1.02392871]
[1717600851908,0.83218831,71212.0,71211.0,1.02392871]
[1717600852355,1.31303931,71212.0,71211.0,1.02392871]
[1717600852489,0.82218831,71212.0,71211.0,1.02392871]
[1717600852686,0.79918831,71212.0,71211.0,1.02392871]
[1717600853044,1.41303931,71212.0,71211.0,1.02392871]
[1717600853261,1.51303931,71212.0,71211.0,1.02392871]
[1717600853469,2.40799446,71212.0,71211.0,1.002]
[1717600853670,2.07238902,71212.0,71211.0,1.002]
[1717600853870,2.30552026,71212.0,71211.0,1.002]
[1717600854105,2.46549446,71212.0,71211.0,1.002]
[1717600854309,0.53489123,71212.0,71211.0,1.1601]
[1717600854531,0.21369333,71212.0,71211.0,1.002]
[1717600854748,0.15091838,71212.0,71211.0,1.002]
[1717600856147,0.87703931,71212.0,71211.0,1.002]
[1717600856352,0.14108726,71212.0,71211.0,1.002]
[1717600856561,0.00066226,71212.0,71211.0,1.2422]
[1717600857712,4e-05,71216.0,71211.0,1.2422]
[1717600857713,0.00066226,71213.0,71211.0,1.2422]
[1717600858513,0.00066226,71213.0,71211.0,1.24061278]
[1717600858901,4e-05,71216.0,71214.0,0.14042]
[1717600859107,4e-05,71216.0,71215.0,0.2472]
[1717600859643,4e-05,71216.0,71215.0,0.387619]
[1717600860086,0.4,71246.0,71215.0,0.39161893]
[1717600860291,0.01665211,71239.0,71228.0,0.140393]
[1717600860482,0.140354,71249.0,71232.0,0.140385]
[1717600860683,0.04181526,71251.0,71234.0,0.140381]
[1717600860902,0.01,71253.0,71234.0,0.140381]
[1717600861099,0.01,71248.0,71231.0,0.1634]
[1717600861249,0.140352,71249.0,71231.0,0.303787]
[1717600861486,0.140352,71249.0,71233.0,0.140383]
[1717600861943,0.140352,71249.0,71234.0,0.2402]
[1717600862162,0.01,71261.0,71236.0,0.07222824]
[1717600862371,0.04181526,71263.0,71236.0,0.07222824]
[1717600862372,0.01,71260.0,71242.0,0.140365]
[1717600862574,0.01086,71257.0,71242.0,0.140365]
[1717600862782,0.00086,71257.0,71243.0,0.2363]
[1717600863005,0.00086,71257.0,71243.0,0.38071893]
[1717600863219,0.00086,71257.0,71237.0,0.1705]
[1717600863220,0.00086,71257.0,71248.0,0.2363]
[1717600863433,0.00086,71257.0,71256.0,0.140339]
[1717600863636,0.00086,71257.0,71256.0,0.52105793]
[1717600864052,0.00086,71257.0,71256.0,0.62105793]
[1717600864677,0.00086,71257.0,71256.0,0.64105793]
[1717600865311,0.46206,71271.0,71264.0,0.1564]
[1717600865520,0.017018,71279.0,71265.0,0.14441893]
[1717600865936,0.017018,71279.0,71269.0,0.01]
[1717600866148,0.017018,71279.0,71272.0,0.01]
[1717600866344,0.017018,71279.0,71273.0,0.14441893]
[1717600866548,0.017018,71279.0,71278.0,0.140295]
[1717600866791,0.017018,71279.0,71278.0,0.28471393]
[1717600867159,0.017018,71279.0,71278.0,0.61971393]
[1717600867515,0.46406,71289.0,71280.0,0.140291]
[1717600867746,0.002,71289.0,71281.0,0.28470793]
[1717600868704,0.002,71289.0,71282.0,0.140287]
[1717600868908,0.002,71289.0,71283.0,0.14441893]
[1717600869954,0.002,71289.0,71284.0,0.140283]
[1717600870118,0.002,71289.0,71285.0,0.14441893]
[1717600870718,0.002,71289.0,71286.0,0.140279]
[1717600870918,0.002,71289.0,71287.0,0.14441893]
[1717600871183,0.002,71289.0,71288.0,0.2431]
[1717600871365,0.002,71289.0,71288.0,0.52779493]
[1717600871506,0.002,71289.0,71288.0,0.63779493]
[1717600871725,0.002,71289.0,71288.0,0.64779493]
[1717600872160,0.002,71289.0,71288.0,0.92834693]
[1717600872364,0.002,71289.0,71288.0,1.12834693]
[1717600872893,0.00865,71295.0,71294.0,0.160264]
[1717600873099,0.00865,71295.0,71294.0,0.64478293]
[1717600873749,0.00865,71295.0,71294.0,1.32531093]
[1717600873956,0.160847,71329.0,71308.0,0.371336]
[1717600874160,0.160847,71329.0,71308.0,0.51575493]
[1717600874161,0.01065,71329.0,71308.0,0.51575493]
[1717600874392,0.01,71323.0,71308.0,0.51575493]
[1717600874607,0.01,71316.0,71301.0,0.2385]
[1717600874807,0.1529,71312.0,71293.0,0.1578]
[1717600875027,0.1529,71312.0,71295.0,0.43336945]
[1717600875028,0.140229,71312.0,71295.0,0.43336945]
[1717600875231,0.140229,71312.0,71295.0,0.14441893]
[1717600875413,0.0802,71314.0,71295.0,0.14441893]
[1717600875414,0.01,71307.0,71295.0,0.14441893]
[1717600875832,0.01,71310.0,71293.0,0.1578]
[1717600875833,0.140243,71305.0,71293.0,0.1578]
[1717600876313,0.140245,71304.0,71293.0,0.1578]
[1717600876525,0.002,71309.0,71301.0,0.0751]
[1717600876737,0.002,71309.0,71297.0,0.1652]
[1717600876738,0.002,71309.0,71308.0,0.140236]
[1717600876943,0.002,71309.0,71308.0,0.37461893]
[1717600877891,0.002,71309.0,71308.0,0.51485493]
[1717600878111,0.002,71309.0,71308.0,1.11532793]
[1717600878501,0.002,71309.0,71308.0,1.01532793]
[1717600878705,0.002,71309.0,71308.0,1.35516186]
[1717600878876,0.002,71309.0,71308.0,1.15516186]
[1717600879100,0.002,71309.0,71308.0,1.39503815]
[1717600879696,0.002,71309.0,71308.0,1.88811115]
[1717600879911,0.00865,71328.0,71327.0,0.140199]
[1717600880077,0.00865,71328.0,71327.0,0.61911793]
[1717600880272,0.00865,71328.0,71327.0,0.62911793]
[1717600880472,0.00865,71328.0,71327.0,0.99922615]
[1717600880829,0.00865,71328.0,71327.0,1.29922615]
[1717600881017,0.140139,71358.0,71336.0,0.01]
[1717600881236,0.140139,71358.0,71337.0,0.18425286]
[1717600881848,0.140139,71358.0,71337.0,0.14441893]
[1717600882102,0.140139,71358.0,71337.0,0.19008906]
[1717600882312,0.01,71354.0,71337.0,0.19008906]
[1717600882523,0.01,71352.0,71337.0,0.14441893]
[1717600882727,0.01,71348.0,71327.0,0.3345]
[1717600882933,0.140168,71343.0,71328.0,0.24441893]
[1717600883160,0.08222824,71342.0,71327.0,0.2345]
[1717600883373,0.01,71335.0,71318.0,0.2341]
[1717600883581,0.140185,71335.0,71319.0,0.57778838]
[1717600883792,0.150185,71335.0,71319.0,0.57778838]
[1717600883988,0.150185,71335.0,71319.0,0.14441893]
[1717600884199,0.01,71331.0,71319.0,0.14441893]
[1717600884411,0.140202,71326.0,71311.0,0.1612]
[1717600884612,0.140206,71324.0,71314.0,0.056102]
[1717600884828,0.01,71323.0,71315.0,0.14441893]
[1717600885030,0.140209,71322.0,71315.0,0.14441893]
[1717600885469,0.0166814,71323.0,71315.0,0.14441893]
[1717600885780,0.00668134,71321.0,71315.0,0.14441893]
[1717600886016,0.14021,71322.0,71311.0,0.1612]
[1717600886221,0.00668131,71320.0,71312.0,0.14441893]
[1717600886437,0.00668131,71320.0,71313.0,0.00560869]
[1717600886642,0.01,71326.0,71311.0,0.1612]
[1717600886844,0.01,71322.0,71302.0,0.1662]
[1717600887050,0.4,71328.0,71303.0,0.71803238]
[1717600887051,0.00668133,71319.0,71303.0,0.71803238]
[1717600887258,0.01,71319.0,71305.0,0.056109]
[1717600887459,0.140219,71317.0,71306.0,0.14441893]
[1717600887872,0.00660222,71318.0,71307.0,0.00560927]
[1717600888045,0.01,71330.0,71308.0,0.14441893]
[1717600888046,0.140205,71324.0,71308.0,0.14441893]
[1717600888287,0.01,71327.0,71310.0,0.140231]
[1717600888497,0.150199,71327.0,71311.0,0.14441893]
[1717600888700,0.01,71330.0,71314.0,0.140223]
[1717600888914,0.00660248,71326.0,71315.0,0.14441893]
[1717600889115,0.01,71330.0,71315.0,0.14441893]
[1717600889288,0.140201,71327.0,71315.0,0.14441893]
[1717600889542,0.01,71326.0,71315.0,0.14441893]
[1717600889717,0.01,71323.0,71315.0,0.14441893]
[1717600889989,0.140207,71323.0,71315.0,0.14441893]
[1717600890207,0.00657021,71322.0,71315.0,0.14441893]
[1717600890594,0.00657021,71322.0,71306.0,0.140239]
[1717600890829,0.140219,71317.0,71307.0,0.14441893]
[1717600891039,0.01,71327.0,71307.0,0.14441893]
[1717600891249,0.140223,71315.0,71307.0,0.14441893]
[1717600891630,0.01,71321.0,71307.0,0.14441893]
[1717600891837,0.140223,71315.0,71307.0,0.14441893]
[1717600892172,0.140223,71315.0,71302.0,0.1662]
[1717600892173,0.01,71315.0,71302.0,0.1662]
[1717600892351,0.14678873,71314.0,71302.0,0.31061893]
[1717600892524,0.01,71319.0,71302.0,0.14441893]
[1717600892525,0.01,71316.0,71302.0,0.14441893]
[1717600892704,0.00656266,71313.0,71302.0,0.14441893]
[1717600892905,0.01701201,71312.0,71299.0,0.056114]
[1717600893221,0.02357512,71312.0,71293.0,0.0777]
[1717600893426,0.140247,71303.0,71298.0,0.017012]
[1717600893834,0.140247,71303.0,71294.0,0.57778838]
[1717600893835,0.140237,71308.0,71294.0,0.14441893]
[1717600894209,0.140237,71308.0,71291.0,0.058119]
[1717600894210,0.0065613,71302.0,71291.0,0.058119]
[1717600894587,0.00701268,71307.0,71291.0,0.058119]
[1717600894588,0.00656127,71301.0,71291.0,0.058119]
[1717600894713,0.140261,71296.0,71291.0,0.058119]
[1717600894909,0.00630859,71300.0,71291.0,0.002]
[1717600895555,0.01332206,71300.0,71291.0,0.002]
[1717600895889,0.280475,71308.0,71291.0,0.002]
[1717600895890,0.140268,71292.0,71291.0,0.002]
[1717600896430,0.14657535,71292.0,71291.0,0.002]
[1717600899088,0.15657535,71292.0,71291.0,0.002]
[1717600899481,0.14657535,71292.0,71291.0,0.002]
[1717600900464,0.52501135,71292.0,71291.0,0.002]
[1717600900707,0.72501135,71292.0,71291.0,0.002]
[1717600901159,0.01,71282.0,71271.0,0.002]
[1717600901353,0.140293,71279.0,71278.0,0.43336945]
[1717600901676,0.140293,71279.0,71271.0,0.002]
[1717600901890,0.14651948,71279.0,71271.0,0.002]
[1717600902110,0.140293,71279.0,71271.0,0.002]
[1717600902325,0.00622645,71278.0,71271.0,0.002]
[1717600902653,0.14652145,71278.0,71271.0,0.002]
[1717600902879,0.140295,71278.0,71271.0,0.002]
[1717600903081,0.01,71279.0,71271.0,0.002]
[1717600903307,0.01,71278.0,71271.0,0.002]
[1717600903644,0.10951234,71272.0,71271.0,0.002]
[1717600903777,0.01,71276.0,71271.0,0.002]
[1717600903957,0.1502,71281.0,71271.0,0.002]
[1717600903958,0.140307,71272.0,71271.0,0.002]
[1717600904370,0.1403,71276.0,71271.0,0.002]
[1717600904572,0.140307,71272.0,71271.0,0.002]
[1717600905012,0.1403,71276.0,71271.0,0.002]
[1717600905895,0.01690017,71289.0,71272.0,0.07222824]
[1717600906141,0.140263,71295.0,71274.0,0.1532]
[1717600906347,0.140263,71295.0,71280.0,0.140291]
[1717600906559,0.1594,71299.0,71280.0,0.140291]
[1717600906560,0.140264,71294.0,71280.0,0.140291]
[1717600906782,0.140257,71298.0,71282.0,0.140286]
[1717600906954,0.31381893,71299.0,71275.0,0.14441893]
[1717600907128,0.01,71296.0,71275.0,0.14441893]
[1717600907330,0.140273,71290.0,71276.0,0.140298]
[1717600907563,0.01,71289.0,71274.0,0.1532]
[1717600907768,0.140288,71282.0,71275.0,0.14441893]
[1717600908171,0.01,71283.0,71271.0,0.002]
[1717600908387,0.01,71284.0,71271.0,0.002]
[1717600908789,0.01,71285.0,71271.0,0.002]
[1717600909003,0.01,71284.0,71271.0,0.002]
[1717600909217,0.2226,71289.0,71271.0,0.142309]
[1717600909406,0.01,71287.0,71271.0,0.142309]
[1717600909650,0.140281,71286.0,71272.0,0.140307]
[1717600909854,0.01,71287.0,71271.0,0.002]
[1717600910069,0.01,71293.0,71271.0,0.14641893]
[1717600910289,0.01,71290.0,71273.0,0.140305]
[1717600910514,0.01,71287.0,71271.0,0.17441893]
[1717600910726,0.140295,71278.0,71272.0,0.1524]
[1717600910975,0.01,71289.0,71272.0,0.292705]
[1717600910976,0.140284,71284.0,71272.0,0.292705]
[1717600911222,0.01,71284.0,71271.0,0.17441893]
[1717600911463,0.140293,71280.0,71271.0,0.17441893]
[1717600912124,0.04168487,71291.0,71272.0,0.14441893]
[1717600912307,0.140286,71283.0,71272.0,0.14441893]
[1717600912578,0.140292,71280.0,71272.0,0.14441893]
[1717600912824,0.140294,71279.0,71272.0,0.14441893]
[1717600913074,0.150286,71283.0,71272.0,0.14441893]
[1717600913330,0.140286,71283.0,71272.0,0.14441893]
[1717600913556,0.150286,71283.0,71272.0,0.14441893]
[1717600913760,0.01,71283.0,71271.0,0.03]
[1717600913966,0.140295,71278.0,71271.0,0.03]
[1717600914201,0.01,71281.0,71271.0,0.03]
[1717600914411,0.140293,71280.0,71271.0,0.03]
[1717600915383,0.01,71281.0,71271.0,0.03]
[1717600915590,0.01,71283.0,71271.0,0.03]
[1717600915788,0.01,71285.0,71271.0,0.03]
[1717600915997,0.01,71283.0,71271.0,0.03]
[1717600916544,0.0801,71292.0,71271.0,0.03]
[1717600916545,0.01,71281.0,71271.0,0.03]
[1717600916682,0.140301,71275.0,71271.0,0.03]
[1717600916880,0.01,71276.0,71271.0,0.03]
[1717600917156,0.140302,71275.0,71271.0,0.03]
[1717600917302,0.01,71277.0,71271.0,0.03]
[1717600917505,0.01,71278.0,71271.0,0.03]
[1717600917707,0.150295,71279.0,71271.0,0.03]
[1717600917918,0.01,71278.0,71271.0,0.03]
[1717600918689,0.01,71277.0,71271.0,0.03]
[1717600918886,0.01,71276.0,71271.0,0.03]
[1717600919117,0.150296,71278.0,71271.0,0.03]
[1717600919672,0.01,71277.0,71271.0,0.03]
[1717600919920,0.140307,71272.0,71271.0,0.03]
[1717600920277,0.01,71288.0,71271.0,0.17548137]
[1717600920492,0.140287,71283.0,71271.0,0.03]
[1717600921098,0.01,71289.0,71272.0,0.14441893]
[1717600921308,0.1701,71293.0,71275.0,0.140301]
[1717600921646,0.14028,71286.0,71275.0,0.140301]
[1717600921828,0.140284,71284.0,71272.0,0.28472593]
[1717600922168,0.140277,71288.0,71272.0,0.14441893]
[1717600922366,0.01,71302.0,71276.0,0.07222824]
[1717600922671,0.150256,71299.0,71284.0,0.140283]
[1717600922859,0.140256,71298.0,71284.0,0.28470193]
[1717600923047,0.01,71294.0,71284.0,0.14441893]
[1717600923180,0.01,71294.0,71268.0,0.18222824]
[1717600923181,0.01,71286.0,71275.0,0.0818]
[1717600923383,0.01,71282.0,71275.0,0.0818]
[1717600924121,0.140299,71276.0,71275.0,0.0818]
[1717600924320,0.01,71282.0,71267.0,0.078]
[1717600924321,0.140291,71280.0,71267.0,0.078]
[1717600925408,0.140291,71280.0,71267.0,0.218317]
[1717600925851,0.140291,71280.0,71270.0,100.0]
[1717600926055,0.140294,71279.0,71270.0,100.0]
[1717600926431,0.310386,71283.0,71270.0,100.0]
[1717600926651,0.310386,71283.0,71271.0,0.170309]
[1717600926851,0.310386,71283.0,71272.0,0.07222824]
[1717600927059,0.140276,71288.0,71281.0,0.07222824]
[1717600927324,0.1577,71301.0,71282.0,0.22441893]
[1717600927477,0.01,71295.0,71284.0,0.07222824]
[1717600927636,0.1701,71297.0,71284.0,0.07222824]
[1717600927856,0.01,71295.0,71284.0,0.07222824]
[1717600928294,0.140268,71292.0,71284.0,0.07222824]
[1717600928703,0.01,71302.0,71284.0,0.07222824]
[1717600928903,0.14026,71297.0,71285.0,0.140281]
[1717600929291,0.01,71303.0,71292.0,0.07222824]
[1717600929573,0.140256,71298.0,71292.0,0.07222824]
[1717600929963,0.140258,71297.0,71292.0,0.07222824]
[1717600930127,0.140269,71292.0,71284.0,0.07222824]
[1717600930520,0.140262,71296.0,71284.0,0.07222824]
[1717600930721,0.140263,71295.0,71292.0,0.07222824]
[1717600931154,0.04165757,71303.0,71297.0,0.140257]
[1717600931349,0.06248636,71305.0,71301.0,0.07222824]
[1717600931350,0.04165757,71305.0,71301.0,0.07222824]
[1717600931526,0.04165757,71306.0,71301.0,0.07222824]
[1717600931736,0.67381757,71314.0,71301.0,0.07222824]
[1717600932049,0.140248,71302.0,71301.0,0.07222824]
[1717600932226,0.05165757,71311.0,71301.0,0.07222824]
[1717600932452,0.04165757,71311.0,71310.0,0.07222824]
[1717600932664,0.04165757,71315.0,71310.0,0.31182824]
[1717600932893,0.04165757,71317.0,71311.0,0.14441893]
[1717600933223,0.46206,71327.0,71311.0,0.14441893]
[1717600933421,0.002,71329.0,71326.0,0.07222824]
[1717600933982,0.01,71327.0,71326.0,0.07222824]
[1717600934181,0.002,71329.0,71326.0,0.07222824]
[1717600934611,0.150198,71328.0,71326.0,0.07222824]
[1717600934775,0.01,71327.0,71318.0,0.07222824]
[1717600934978,0.012,71329.0,71326.0,0.07222824]
[1717600935206,0.002,71329.0,71326.0,0.07222824]
[1717600935406,0.002,71329.0,71327.0,0.1603]
[1717600935622,0.002,71329.0,71318.0,0.07222824]
[1717600935823,0.01,71321.0,71318.0,0.07222824]
[1717600935992,0.002,71329.0,71318.0,0.07222824]
[1717600936198,0.002,71329.0,71328.0,0.07222824]
[1717600937606,0.152195,71329.0,71328.0,0.07222824]
[1717600938015,0.002,71329.0,71328.0,0.07222824]
[1717600938269,0.0082763,71329.0,71328.0,0.07222824]
[1717600938516,0.00849396,71329.0,71328.0,0.07222824]
[1717600939913,0.15868896,71329.0,71328.0,0.07222824]
[1717600940121,0.2,71336.0,71333.0,3.83131104]
[1717600940303,0.140185,71334.0,71333.0,3.83131104]
[1717600940504,0.28460393,71334.0,71333.0,3.83131104]
[1717600941025,0.32634458,71334.0,71333.0,3.83131104]
[1717600941223,0.28460393,71334.0,71333.0,3.83131104]
[1717600941750,0.140185,71334.0,71333.0,3.83131104]
[1717600942303,0.20864,71338.0,71333.0,3.83131104]
[1717600942304,0.00864,71338.0,71337.0,0.140179]
[1717600942519,0.00864,71338.0,71337.0,0.73308517]
[1717600942717,0.00864,71338.0,71337.0,0.60672617]
[1717600944339,0.15305893,71338.0,71334.0,0.07222824]
[1717600944533,0.00864,71338.0,71334.0,0.07222824]
[1717600946246,0.140183,71335.0,71334.0,0.07222824]
[1717600946859,0.30760193,71335.0,71334.0,0.07222824]
[1717600947291,0.00864,71338.0,71334.0,0.07222824]
[1717600947706,0.148817,71338.0,71334.0,0.07222824]
[1717600947880,0.14018,71337.0,71334.0,0.07222824]
[1717600948497,0.00864,71338.0,71334.0,0.07222824]
[1717600949282,0.00864,71338.0,71334.0,0.10022824]
[1717600950231,0.140183,71335.0,71334.0,0.10022824]
[1717600950961,0.28460193,71335.0,71334.0,0.10022824]
[1717600951169,0.28460193,71335.0,71334.0,0.09522824]
[1717600951411,0.48460193,71335.0,71334.0,0.09522824]
[1717600951606,0.28460193,71335.0,71334.0,0.09522824]
[1717600953520,0.56496893,71335.0,71334.0,0.09522824]
[1717600954099,1.28073593,71335.0,71334.0,0.09522824]
[1717600954283,1.31253593,71335.0,71334.0,0.09522824]
[1717600954751,1.23363593,71335.0,71334.0,0.09522824]
[1717600954959,1.43363593,71335.0,71334.0,0.59522824]
[1717600955209,1.91400293,71335.0,71334.0,0.59522824]
[1717600955864,2.20400293,71335.0,71334.0,0.59522824]
[1717600956068,2.47104358,71335.0,71334.0,0.59522824]
[1717600956319,2.42930293,71335.0,71334.0,0.59522824]
[1717600956526,2.49178929,71335.0,71334.0,0.59522824]
[1717600956952,2.42930293,71335.0,71334.0,0.59522824]
[1717600957384,2.42930293,71335.0,71334.0,0.528]
[1717600957662,2.73991126,71335.0,71334.0,0.528]
[1717600958111,1.98170293,71335.0,71334.0,0.60022824]
[1717600958363,1.38833593,71335.0,71334.0,0.60022824]
[1717600958578,1.38833593,71335.0,71334.0,0.528]
[1717600958795,0.56496893,71335.0,71334.0,0.60022824]
[1717600959005,0.84533593,71335.0,71334.0,0.528]
[1717600959383,0.56496893,71335.0,71334.0,0.528]
[1717600961129,0.76496893,71335.0,71334.0,0.528]
[1717600961377,0.84533593,71335.0,71334.0,0.528]
[1717600961588,0.58796893,71335.0,71334.0,0.528]
[1717600964912,0.56496893,71335.0,71334.0,0.528]
[1717600965955,0.73486893,71335.0,71334.0,0.528]
[1717600966161,1.01523593,71335.0,71334.0,0.528]
[1717600966361,0.73486893,71335.0,71334.0,0.528]
[1717600966904,0.93486893,71335.0,71334.0,0.528]
[1717600967339,0.73486893,71335.0,71334.0,0.528]
[1717600967543,1.21523593,71335.0,71334.0,0.528]
[1717600967741,0.73486893,71335.0,71334.0,0.528]
[1717600967951,0.93486893,71335.0,71334.0,0.528]
[1717600968146,0.97655801,71335.0,71334.0,0.528]
[1717600968968,0.77655801,71335.0,71334.0,0.528]
[1717600969372,0.73486893,71335.0,71334.0,0.528]
[1717600969594,1.25699387,71335.0,71334.0,0.528946]
[1717600969951,1.31609593,71335.0,71334.0,0.528946]
[1717600970150,1.92925579,71335.0,71334.0,0.528946]
[1717600970372,2.20962279,71335.0,71334.0,0.528946]
[1717600970574,2.2096483,71335.0,71334.0,0.528946]
[1717600971358,0.540185,71334.0,71333.0,3.83131104]
[1717600971561,1.51594593,71334.0,71333.0,3.3979127]
[1717600971845,1.51594593,71334.0,71333.0,3.3819127]
[1717600971846,2.78477689,71334.0,71333.0,3.3819127]
[1717600972049,2.92579052,71334.0,71333.0,3.3819127]
[1717600972249,2.78477689,71334.0,71333.0,3.3819127]
[1717600972446,2.92989476,71334.0,71333.0,3.3519127]
[1717600973091,2.92989476,71334.0,71333.0,3.32440599]
[1717600973308,3.21026576,71334.0,71333.0,3.16540671]
[1717600973488,3.28666576,71334.0,71333.0,3.11915011]
[1717600973691,3.28666576,71334.0,71333.0,3.10315011]
[1717600974100,3.28666576,71334.0,71333.0,2.18875011]
[1717600974296,3.28666576,71334.0,71333.0,1.36289281]
[1717600974934,3.21616576,71334.0,71333.0,0.89187095]
[1717600975088,3.21616576,71334.0,71333.0,0.76807095]
[1717600975089,3.74976833,71334.0,71333.0,0.76807095]
[1717600975294,3.96216246,71334.0,71333.0,0.661049]
[1717600975787,4.97109749,71334.0,71333.0,0.661049]
[1717600975957,4.82597962,71334.0,71333.0,0.661049]
[1717600976117,4.64464143,71334.0,71333.0,0.661049]
[1717600976302,4.49210394,71334.0,71333.0,0.661049]
[1717600976534,3.30939987,71334.0,71333.0,0.661049]
[1717600976744,3.42019242,71334.0,71333.0,0.661049]
[1717600976945,3.27890119,71334.0,71333.0,0.661049]
[1717600977150,3.30954396,71334.0,71333.0,0.661049]
[1717600977406,3.76928819,71334.0,71333.0,0.631049]
[1717600977557,3.79736819,71334.0,71333.0,0.631049]
[1717600977768,3.51699719,71334.0,71333.0,0.631049]
[1717600978412,3.37187932,71334.0,71333.0,0.631049]
[1717600978614,3.39487932,71334.0,71333.0,0.631049]
[1717600978973,3.39487932,71334.0,71333.0,0.615049]
[1717600978974,3.67525032,71334.0,71333.0,0.615049]
[1717600979188,4.36770631,71334.0,71333.0,0.615049]
[1717600979547,4.76575845,71334.0,71333.0,0.615049]
[1717600979883,4.83314058,71334.0,71333.0,0.586049]
[1717600980158,4.58020631,71334.0,71333.0,0.586049]
[1717600980458,4.10686834,71334.0,71333.0,0.586049]
[1717600980635,3.2894718,71334.0,71333.0,0.586049]
[1717600980840,2.59702056,71334.0,71333.0,0.586049]
[1717600981055,2.6945254,71334.0,71333.0,0.586049]
[1717600981224,2.66403712,71334.0,71333.0,0.586049]
[1717600981427,2.54931666,71334.0,71333.0,0.586049]
[1717600981832,2.51891925,71334.0,71333.0,0.586049]
[1717600982034,2.54191925,71334.0,71333.0,0.586049]
[1717600982256,2.57231508,71334.0,71333.0,0.586049]
[1717600982457,2.54191925,71334.0,71333.0,0.586049]
[1717600982660,2.71361235,71334.0,71333.0,0.586049]